bitfinex/quotes_ETHUSD_20220202
["timestamp","ask_amount","ask_price","bid_price","bid_amount"]
[1643794307595,0.90423,2764.7,2764.3,2.63690345]
[1643794308996,0.90423,2764.7,2764.5,0.90417]
[1643794310749,0.90408,2765.0,2764.5,0.90417]
[1643794310940,0.90408,2765.0,2764.6,2.00631911]
[1643794311140,0.90408,2765.0,2764.7,0.90404]
[1643794311340,0.90408,2765.0,2764.7,2.28868279]
[1643794311540,0.90408,2765.0,2764.7,0.90404]
[1643794311940,0.90408,2765.0,2764.3,1.82861345]
[1643794312141,0.90408,2765.0,2764.5,0.90417]
[1643794312546,0.90408,2765.0,2764.8,0.90450689]
[1643794313401,0.1807,2765.2,2764.8,0.90450689]
[1643794313595,0.904,2765.3,2764.8,0.90450689]
[1643794313796,0.1807,2765.5,2764.8,3.71243689]
[1643794313997,1.52963788,2765.4,2764.8,2.71243689]
[1643794314195,0.1807,2765.3,2765.1,0.31700047]
[1643794314395,0.1807,2765.3,2765.1,0.90394]
[1643794314996,0.1807,2765.3,2764.8,1.80793]
[1643794315197,1.52971867,2765.2,2764.6,4.1013]
[1643794315396,0.90411,2765.1,2764.6,3.1013]
[1643794315597,1.28332592,2765.1,2764.7,1.0]
[1643794315901,1.28332592,2765.1,2764.6,3.1013]
[1643794316094,1.28332592,2765.1,2764.7,1.0]
[1643794316294,1.28332592,2765.1,2764.6,1.69753054]
[1643794316496,0.90411,2765.1,2764.6,0.79341054]
[1643794317645,1.26330763,2765.1,2764.6,0.79341054]
[1643794318145,1.26330763,2765.1,2764.8,0.90407]
[1643794318749,0.90411,2765.1,2764.8,0.90407]
[1643794319149,0.1807,2765.3,2764.8,0.90407]
[1643794319350,0.1807,2765.3,2764.8,1.90407]
[1643794319549,0.1807,2765.3,2764.8,0.90407]
[1643794319749,0.57955476,2765.3,2764.8,1.90407]
[1643794320351,0.39885476,2765.3,2764.8,1.90407]
[1643794320749,0.69885476,2765.3,2764.8,1.90407]
[1643794320985,1.60287476,2765.3,2764.8,1.90407]
[1643794321584,1.60287476,2765.3,2764.8,0.90407]
[1643794321785,1.60182832,2765.3,2764.6,0.90412]
[1643794322388,0.90412,2765.0,2764.6,0.90412]
[1643794322588,0.36437053,2764.8,2764.6,0.90412]
[1643794327352,1.20412,2765.0,2764.6,0.90412]
[1643794327756,0.90412,2765.0,2764.6,0.90412]
[1643794327953,0.1807,2765.2,2764.6,0.90412]
[1643794328403,0.44296824,2765.0,2764.6,0.90412]
[1643794330204,0.44296824,2765.0,2764.7,1.9446142]
[1643794330408,0.44296824,2765.0,2764.6,0.90412]
[1643794331006,0.90403,2765.1,2764.6,0.90412]
[1643794332008,0.90403,2765.1,2764.7,1.961835]
[1643794332238,0.90403,2765.1,2764.8,0.904]
[1643794332440,0.90403,2765.1,2764.9,1.96034214]
[1643794332643,1.08466,2765.4,2764.9,1.95322085]
[1643794332842,1.08466,2765.4,2765.1,0.83359592]
[1643794333543,1.43676361,2765.4,2765.1,0.83359592]
[1643794333742,1.08466,2765.4,2765.2,1.93681415]
[1643794333947,5.4089053,2766.1,2765.3,0.523]
[1643794333948,0.1807,2765.8,2765.3,0.523]
[1643794334150,0.68697753,2766.6,2765.4,2.31841652]
[1643794334151,0.1807,2766.0,2765.4,2.31841652]
[1643794334349,0.1807,2766.5,2765.4,6.53211554]
[1643794334543,0.0027276,2766.8,2765.4,6.53211554]
[1643794334544,1.52910838,2766.4,2765.4,5.23211554]
[1643794334742,0.1807,2766.7,2765.4,5.53211554]
[1643794334943,1.52910122,2766.6,2766.0,1.28405571]
[1643794335142,1.70980122,2766.6,2766.0,1.7499243]
[1643794335342,1.52910122,2766.5,2766.0,1.7499243]
[1643794336296,1.52910122,2766.5,2766.0,2.17124647]
[1643794337096,1.52910122,2766.5,2766.0,0.90362]
[1643794338501,1.41910122,2766.5,2766.0,0.90362]
[1643794342247,1.0843,2766.6,2766.0,1.90362]
[1643794342445,1.3843,2766.6,2766.0,1.90362]
[1643794342848,1.3843,2766.6,2766.0,0.90362]
[1643794343394,1.3843,2766.6,2766.2,0.37625255]
[1643794344296,1.0843,2766.6,2766.2,0.37625255]
[1643794344897,0.1807,2766.6,2766.3,0.72489484]
[1643794345098,2.49418683,2767.2,2766.3,0.72489484]
[1643794345099,0.90355,2766.9,2766.3,0.72489484]
[1643794345299,0.1807,2766.8,2766.3,0.72489484]
[1643794345899,0.6027507,2766.8,2766.3,0.72489484]
[1643794346099,0.6027507,2766.8,2766.1,1.0]
[1643794346297,0.6027507,2766.8,2765.8,7.0535]
[1643794346298,0.6027507,2766.8,2765.8,3.927]
[1643794346502,2.09346823,2766.8,2765.8,3.927]
[1643794346798,1.4064907,2766.8,2765.2,4.00363202]
[1643794347008,1.4064907,2766.8,2765.7,0.72573775]
[1643794347009,0.37916256,2766.1,2765.7,0.72573775]
[1643794347258,0.1807,2766.0,2765.2,4.00363202]
[1643794347658,1.20379,2766.1,2765.2,3.75363202]
[1643794347860,1.20379,2766.1,2765.3,1.0]
[1643794348258,1.20379,2766.1,2765.3,1.90381]
[1643794348655,1.20379,2766.1,2765.8,0.88620132]
[1643794350055,0.3,2766.1,2765.8,0.88620132]
[1643794350256,0.1807,2766.3,2765.8,0.88620132]
[1643794351493,0.8768689,2766.4,2765.8,0.88620132]
[1643794351691,0.6961689,2766.4,2765.8,0.88620132]
[1643794351893,0.3961689,2766.4,2765.8,0.88620132]
[1643794352091,0.6961689,2766.4,2765.8,0.88620132]
[1643794352300,0.90373,2766.5,2765.8,0.88620132]
[1643794353795,1.20373,2766.5,2765.8,1.78985132]
[1643794353997,1.20373,2766.5,2765.8,2.78985132]
[1643794354401,0.33699193,2766.4,2765.8,1.78985132]
[1643794354646,0.33699193,2766.4,2765.9,1.0]
[1643794354849,0.33699193,2766.4,2765.8,1.78985132]
[1643794355350,0.90373,2766.5,2765.8,1.78985132]
[1643794356545,1.32804773,2766.5,2765.8,1.78985132]
[1643794356747,1.32804773,2766.5,2765.8,2.08985132]
[1643794358792,1.52923718,2766.4,2765.8,2.08985132]
[1643794359792,1.52923718,2766.4,2765.8,1.78985132]
[1643794360189,1.52811383,2766.4,2765.8,1.78985132]
[1643794362446,1.70881383,2766.4,2765.8,1.78985132]
[1643794362652,0.1807,2766.4,2765.8,1.78985132]
[1643794363446,1.32804773,2766.5,2765.8,1.78985132]
[1643794363649,0.90373,2766.5,2765.8,1.78985132]
[1643794364452,0.90373,2766.5,2765.8,0.88620132]
[1643794365050,0.90373,2766.5,2765.8,1.18620132]
[1643794365255,0.90373,2766.5,2765.8,2.08986132]
[1643794365893,0.90373,2766.5,2765.8,1.78986132]
[1643794366996,0.90373,2766.5,2765.9,2.01996867]
[1643794367204,1.4017,2766.7,2765.9,3.82704867]
[1643794367403,1.4017,2766.7,2766.2,0.36053871]
[1643794367601,0.1807,2766.7,2766.2,0.36053871]
[1643794367807,0.1807,2766.7,2766.2,1.26407871]
[1643794368404,0.1807,2766.8,2766.2,1.26407871]
[1643794369642,0.1807,2767.0,2766.3,2.25671077]
[1643794369840,0.1807,2767.0,2766.5,0.90344]
[1643794370042,3.53107105,2767.2,2766.5,1.20344]
[1643794370349,1.08416,2767.2,2766.7,0.9147944]
[1643794370538,1.08416,2767.2,2766.5,1.20344]
[1643794370539,1.31639228,2767.2,2766.6,0.89945523]
[1643794371341,2.00336981,2767.2,2766.6,0.89945523]
[1643794372644,0.90346,2767.2,2766.6,0.89945523]
[1643794373243,1.59043753,2767.2,2766.6,1.19945523]
[1643794373700,0.44759644,2767.0,2766.6,0.3]
[1643794373901,0.44759644,2767.0,2766.5,1.20344]
[1643794374303,0.44759644,2767.0,2766.4,1.0]
[1643794374304,1.35113644,2767.0,2766.4,1.0]
[1643794374505,2.6023052,2767.0,2766.1,1.80701]
[1643794374705,0.68697753,2766.9,2766.1,1.80701]
[1643794374903,0.68697753,2766.8,2766.1,1.80701]
[1643794375104,0.68697753,2766.8,2766.0,3.9297644]
[1643794375509,0.68697753,2766.7,2766.0,4.28758188]
[1643794375708,0.68697753,2766.7,2766.1,1.0]
[1643794376810,0.68697753,2766.4,2765.4,3.34418771]
[1643794377005,0.9039,2766.2,2765.4,3.1699]
[1643794377242,1.59087753,2766.2,2765.4,3.1699]
[1643794378046,0.39998613,2765.9,2765.4,3.1699]
[1643794378242,1.59087753,2766.2,2765.5,1.0]
[1643794378243,0.90385,2765.8,2765.5,1.0]
[1643794378841,1.319,2766.3,2765.4,0.3]
[1643794379045,1.319,2766.3,2765.5,2.00494657]
[1643794379046,1.1383,2766.3,2765.5,2.00494657]
[1643794379243,1.1383,2766.3,2765.4,2.20376]
[1643794379442,1.1383,2766.3,2765.4,1.20376]
[1643794379743,0.32521117,2766.1,2765.4,2.20376]
[1643794379943,0.90378,2766.0,2765.4,1.3]
[1643794380245,1.52922602,2765.9,2765.2,2.34817202]
[1643794380442,1.52922602,2765.9,2765.2,0.54073202]
[1643794380647,1.52922602,2765.9,2765.2,1.44464202]
[1643794381506,1.52922602,2765.9,2765.2,2.4834895]
[1643794382104,1.52922602,2765.9,2765.2,3.4834895]
[1643794382507,1.52922602,2765.9,2765.2,2.94275748]
[1643794382911,1.52922602,2765.9,2765.4,0.90382]
[1643794383411,1.52922602,2766.0,2765.4,0.90382]
[1643794383710,1.52922602,2765.9,2765.4,0.90382]
[1643794383911,1.52922602,2765.8,2765.4,0.90382]
[1643794384110,1.52922602,2765.7,2765.4,0.90382]
[1643794384311,2.43305602,2766.1,2765.4,0.90382]
[1643794384515,1.52922602,2766.0,2765.4,0.90382]
[1643794384757,1.52922602,2766.0,2765.7,0.93696712]
[1643794384962,1.52922602,2766.0,2765.8,2.0]
[1643794385162,0.91749982,2766.7,2765.7,2.14068712]
[1643794385163,0.1807,2766.6,2765.7,2.14068712]
[1643794385358,1.5289745,2766.5,2765.7,2.14068712]
[1643794385761,1.5289745,2766.4,2765.7,2.14068712]
[1643794385956,1.5289745,2766.3,2766.2,1.62786295]
[1643794386358,1.5289745,2766.7,2766.2,1.62786295]
[1643794386555,0.1807,2766.8,2766.2,1.62786295]
[1643794386556,1.5289745,2766.6,2766.2,1.62786295]
[1643794386756,1.5289745,2766.7,2766.2,1.62786295]
[1643794386958,1.5289745,2766.6,2766.2,1.62786295]
[1643794387261,1.5289745,2766.5,2766.3,0.3]
[1643794387463,1.5289745,2766.4,2766.3,0.3]
[1643794387662,1.5289745,2766.8,2766.3,0.3]
[1643794389795,0.43138953,2766.7,2766.2,1.62786295]
[1643794389996,1.5289745,2766.6,2766.2,1.62786295]
[1643794390196,1.5289745,2766.6,2766.2,0.72431295]
[1643794390396,2.4325645,2766.6,2766.2,0.72431295]
[1643794390596,1.5289745,2766.5,2766.2,0.72431295]
[1643794390801,1.5289745,2766.5,2766.3,0.3]
[1643794392254,0.90343,2766.9,2766.4,7.49249809]
[1643794392450,1.52846693,2766.8,2766.7,4.16647173]
[1643794392650,1.52846693,2766.9,2766.5,1.0]
[1643794392850,1.52846693,2766.9,2766.5,0.523]
[1643794393249,1.52846693,2766.8,2766.5,1.523]
[1643794393454,1.80688,2767.2,2766.5,0.523]
[1643794393649,1.80688,2767.2,2766.7,0.93543511]
[1643794393650,1.5284177,2767.1,2766.7,0.93543511]
[1643794393854,1.5284177,2767.1,2766.7,0.90335]
[1643794394051,1.5284177,2767.1,2766.5,1.0]
[1643794394250,0.43094295,2766.9,2766.5,0.3]
[1643794394452,1.5284177,2766.8,2766.5,0.3]
[1643794394649,1.5284177,2766.8,2766.4,3.10667]
[1643794394849,1.52755874,2766.8,2766.5,1.94628596]
[1643794395449,0.90337,2767.0,2766.5,1.94628596]
[1643794395751,0.90337,2767.0,2766.6,1.20339]
[1643794396193,0.90337,2767.0,2766.5,1.94628596]
[1643794396392,0.3196687,2766.8,2766.5,1.94628596]
[1643794396592,1.2231287,2766.8,2766.5,1.94628596]
[1643794396793,1.2231287,2766.8,2766.4,1.80667]
[1643794396994,1.2231287,2766.8,2766.2,1.0]
[1643794396995,1.2231287,2766.8,2766.3,1.0]
[1643794397197,1.2231287,2766.8,2766.1,2.99337]
[1643794397399,1.2231287,2766.8,2765.9,1.80702]
[1643794397400,3.22739068,2766.8,2765.9,1.80702]
[1643794397599,3.22739068,2766.8,2765.8,3.3226]
[1643794397600,0.1807,2766.7,2765.8,3.3226]
[1643794397798,0.1807,2766.7,2765.7,0.68267658]
[1643794397799,1.30353161,2766.1,2765.7,0.68267658]
[1643794398604,1.30353161,2766.1,2765.7,1.68267658]
[1643794398998,1.24153161,2766.1,2765.7,1.68267658]
[1643794399199,1.24153161,2766.1,2765.7,0.68267658]
[1643794399400,1.24153161,2766.1,2765.6,4.11961]
[1643794399646,1.24153161,2766.1,2765.6,0.90371]
[1643794400650,1.24153161,2766.1,2765.7,0.8180409]
[1643794402051,0.84175,2766.1,2765.7,0.8180409]
[1643794403057,0.44078031,2766.3,2765.8,0.90364]
[1643794403258,0.90366,2766.4,2765.8,1.20364]
[1643794403698,0.90366,2766.4,2765.8,1.50364]
[1643794403905,1.98802,2766.6,2765.8,2.50364]
[1643794404097,1.98802,2766.6,2766.0,0.90358]
[1643794404302,1.98802,2766.6,2766.1,0.42176955]
[1643794404501,0.37311717,2766.7,2766.1,0.42176955]
[1643794404698,0.37311717,2766.7,2766.1,0.40918475]
[1643794404898,0.37311717,2766.7,2766.4,0.79130204]
[1643794405098,1.98777,2766.9,2766.4,0.79130204]
[1643794405500,0.1807,2766.9,2766.4,0.79130204]
[1643794406302,0.1807,2766.9,2766.4,1.69482204]
[1643794408247,0.1807,2766.9,2766.4,0.90352]
[1643794408847,1.08429,2766.9,2766.4,0.90352]
[1643794409052,1.08429,2766.9,2766.2,1.0]
[1643794409248,1.08429,2766.9,2766.3,0.3]
[1643794409651,1.08429,2766.9,2766.3,1.20359]
[1643794410049,1.77126753,2766.9,2766.3,0.3]
[1643794410903,1.77126753,2766.9,2766.3,0.29854956]
[1643794411309,2.49422753,2766.8,2765.8,3.1728]
[1643794411517,0.90375,2766.2,2765.2,6.14988]
[1643794411717,1.80545,2766.2,2765.2,6.3425]
[1643794411908,0.34940054,2765.8,2765.2,5.59736458]
[1643794412108,0.34940054,2765.8,2765.2,0.42576458]
[1643794412712,0.64940054,2765.8,2765.2,0.42576458]
[1643794412915,0.90393,2765.7,2765.2,0.42576458]
[1643794413114,1.8078575,2765.7,2765.2,0.42576458]
[1643794413313,1.8078575,2765.7,2764.9,6.3378]
[1643794413516,0.90393,2765.7,2764.9,6.3378]
[1643794413716,1.20393,2765.7,2764.6,7.72]
[1643794413923,1.08481,2765.6,2764.6,7.72]
[1643794414117,1.77178753,2765.6,2764.3,3.0665]
[1643794414322,1.77178753,2765.6,2764.3,3.89658236]
[1643794414323,0.39898947,2764.8,2764.3,3.89658236]
[1643794414650,1.30321587,2764.8,2764.3,3.89658236]
[1643794415050,1.30321587,2764.8,2764.3,0.83008236]
[1643794415449,0.9042264,2764.8,2764.3,0.83008236]
[1643794415653,1.80843,2764.9,2764.3,0.83008236]
[1643794415850,1.80843,2764.9,2764.3,1.13008236]
[1643794416052,0.90422,2764.7,2764.3,1.13008236]
[1643794417458,0.90422,2764.7,2764.3,0.3]
[1643794417658,0.90422,2764.7,2764.2,1.3]
[1643794418500,0.90422,2764.7,2764.3,0.39231494]
[1643794418701,0.90422,2764.7,2764.2,1.0]
[1643794419101,0.90422,2764.7,2764.1,9.27819]
[1643794420103,0.90422,2764.7,2764.5,0.92918685]
[1643794420503,0.90422,2764.7,2764.6,0.3]
[1643794421506,0.90422,2764.7,2764.3,0.43256096]
[1643794422951,0.90422,2764.7,2764.5,0.72188524]
[1643794423353,0.90422,2764.7,2764.6,0.3]
[1643794425155,0.90422,2764.7,2764.1,9.27819]
[1643794425360,0.90422,2764.7,2764.1,7.77]
[1643794425361,0.9043504,2764.6,2764.1,7.77]
[1643794426197,0.35800443,2764.3,2764.1,7.47]
[1643794426399,2.16696383,2764.3,2764.1,7.47]
[1643794426599,2.46696383,2764.3,2764.1,7.47]
[1643794430146,0.3,2764.2,2764.1,7.47]
[1643794430346,2.47111677,2764.3,2764.1,7.47]
[1643794430347,2.64766383,2764.3,2764.1,7.47]
[1643794430547,0.0935,2764.2,2764.1,7.47]
[1643794431749,0.2742,2764.6,2764.1,8.77]
[1643794431951,0.2742,2764.6,2764.2,1.98827688]
[1643794431952,0.0935,2764.6,2764.2,1.98827688]
[1643794432151,0.0935,2764.6,2764.2,1.0]
[1643794432351,0.0935,2764.6,2764.5,0.38655969]
[1643794432564,0.0935,2764.6,2764.4,0.73318003]
[1643794434312,0.0935,2764.5,2764.2,1.0]
[1643794435608,0.0935,2764.5,2764.3,0.69210357]
[1643794436613,0.0935,2764.5,2764.4,8.68005908]
[1643794436814,1.1462,2765.3,2764.4,8.68005908]
[1643794436815,0.0935,2765.2,2764.4,8.68005908]
[1643794437011,0.0935,2765.2,2764.4,1.98005908]
[1643794437257,0.0935,2765.2,2764.6,0.3]
[1643794437454,0.0935,2765.0,2764.9,0.40690824]
[1643794437658,0.0935,2765.0,2764.9,2.35633817]
[1643794438052,0.0935,2765.0,2764.9,8.35633817]
[1643794438451,0.1807,2766.1,2764.9,8.35633817]
[1643794438653,0.1807,2766.1,2765.0,0.523]
[1643794438854,0.90383,2766.2,2766.0,0.4153848]
[1643794439053,1.7097551,2766.1,2765.2,1.173]
[1643794439254,0.3,2766.1,2765.1,3.36888168]
[1643794439454,0.3,2766.1,2765.1,1.3]
[1643794439653,0.1807,2766.2,2765.5,0.85282937]
[1643794439855,1.52908813,2766.1,2765.5,1.15282937]
[1643794440055,1.52908813,2766.1,2765.5,0.85282937]
[1643794440260,1.82908813,2766.1,2765.6,0.41750226]
[1643794440463,1.70978813,2766.0,2765.6,0.41750226]
[1643794440657,0.1807,2766.0,2765.6,0.41750226]
[1643794440903,1.52911535,2765.9,2765.6,0.41750226]
[1643794441307,1.82911535,2765.9,2765.6,0.41750226]
[1643794441505,0.3,2765.9,2765.6,0.41750226]
[1643794441705,0.3,2765.9,2765.5,1.15282937]
[1643794442308,0.3,2765.9,2765.5,0.85282937]
[1643794442515,2.34433636,2765.9,2765.5,0.85282937]
[1643794442809,0.4807,2765.9,2765.4,0.44557476]
[1643794443016,0.903972,2765.7,2765.4,0.44557476]
[1643794443212,1.807902,2765.7,2765.4,0.44557476]
[1643794443509,1.20393,2765.7,2765.4,0.44557476]
[1643794443911,1.20393,2765.7,2765.3,0.88344717]
[1643794444509,1.20393,2765.7,2765.1,1.0]
[1643794444757,1.20393,2765.7,2765.0,3.10769]
[1643794445150,2.1078681,2765.7,2765.2,0.36175168]
[1643794445952,2.1078681,2765.7,2765.2,0.92740027]
[1643794446350,2.1078681,2765.7,2765.2,1.22740027]
[1643794446751,2.1078681,2765.7,2765.2,0.92740027]
[1643794448403,0.33956288,2765.6,2765.1,0.35752137]
[1643794448605,2.81961109,2765.5,2764.7,6.5484368]
[1643794448805,1.20404,2765.4,2764.7,0.3811368]
[1643794449011,3.71471417,2765.3,2764.6,0.25]
[1643794449211,2.01013499,2765.2,2764.4,3.1432]
[1643794449407,3.74129939,2765.1,2764.4,3.1432]
[1643794449606,0.9042505,2765.0,2764.3,0.815266]
[1643794449808,3.05379497,2764.9,2764.3,0.815266]
[1643794450008,3.35379497,2764.9,2764.3,0.815266]
[1643794450712,3.35379497,2764.9,2764.0,4.8728]
[1643794450909,4.25805267,2764.9,2764.0,3.6872]
[1643794451111,3.6176209,2764.7,2763.6,3.2872]
[1643794451307,0.90446,2764.5,2763.7,1.3]
[1643794451509,2.47604258,2764.4,2763.7,1.3]
[1643794451705,2.77604258,2764.4,2763.7,1.3]
[1643794451907,0.44992996,2764.3,2763.7,0.3]
[1643794452154,1.95649629,2764.2,2763.7,1.24577676]
[1643794452358,2.25649629,2764.2,2763.7,1.24577676]
[1643794452960,1.20448,2764.2,2763.7,1.24577676]
[1643794453161,3.08328496,2764.2,2763.7,1.24577676]
[1643794453561,3.06744296,2764.2,2763.7,0.94577676]
[1643794453760,3.05793773,2764.2,2763.7,0.94577676]
[1643794454160,0.9044695,2764.3,2763.7,0.94577676]
[1643794454364,0.1809,2764.5,2763.7,2.75431676]
[1643794454562,0.1807,2764.7,2763.7,2.75431676]
[1643794454962,0.1807,2764.7,2763.8,1.0]
[1643794455163,2.0,2765.3,2764.6,0.92863782]
[1643794455164,0.1807,2765.2,2764.6,0.92863782]
[1643794455363,1.5293703,2765.1,2764.6,0.92863782]
[1643794455562,0.1807,2765.0,2764.6,0.92863782]
[1643794455761,0.01254111,2765.6,2764.6,0.92863782]
[1643794455762,0.1807,2765.5,2764.6,0.92863782]
[1643794456010,0.9041561,2765.1,2764.6,0.92863782]
[1643794456204,1.2041561,2765.1,2764.4,0.3]
[1643794456408,0.5295584,2765.0,2764.4,0.3]
[1643794456605,0.5295584,2765.0,2764.2,1.3]
[1643794457005,2.37472089,2765.0,2764.2,1.3]
[1643794457207,3.81925039,2764.9,2764.2,1.99118573]
[1643794457411,2.61455011,2764.8,2764.2,1.99118573]
[1643794457608,1.82953521,2764.7,2764.3,0.35992076]
[1643794457808,2.17182885,2764.7,2764.2,1.3]
[1643794458008,1.52955892,2764.6,2764.2,1.3]
[1643794458615,0.3,2764.7,2764.2,0.3]
[1643794458809,0.9043073,2764.5,2764.0,1.3]
[1643794459008,0.9043073,2764.5,2764.1,0.36853864]
[1643794459207,1.2043073,2764.5,2764.1,0.36853864]
[1643794460854,0.9043073,2764.5,2764.1,0.36853864]
[1643794461259,1.2043073,2764.5,2764.1,0.36853864]
[1643794461458,3.91692898,2764.9,2764.2,0.90421]
[1643794461459,1.0849091,2764.9,2764.2,0.90421]
[1643794461657,1.52945937,2764.8,2764.2,0.90421]
[1643794461955,1.82945937,2764.8,2764.2,1.20421]
[1643794462158,0.3,2764.8,2764.2,1.20421]
[1643794462760,0.37857282,2764.7,2764.2,1.20421]
[1643794462959,1.90806695,2764.7,2764.2,1.20421]
[1643794463159,0.37857282,2764.7,2764.2,1.20421]
[1643794463606,1.28284282,2764.7,2764.2,1.20421]
[1643794465409,1.28284282,2764.7,2764.2,0.90421]
[1643794465609,1.28284282,2764.7,2764.0,1.70346822]
[1643794465810,0.90427,2764.7,2764.0,2.00346822]
[1643794466209,0.90427,2764.7,2764.1,0.90423]
[1643794466810,1.27492919,2764.7,2764.1,1.28321595]
[1643794467455,0.90427,2764.7,2764.1,1.28321595]
[1643794468257,0.3,2764.8,2764.1,1.28321595]
[1643794468457,1.0849091,2764.9,2764.6,0.41828584]
[1643794468661,0.3,2764.8,2764.3,0.90414]
[1643794468858,1.20419,2765.0,2764.3,0.90414]
[1643794469258,1.52940476,2764.9,2764.3,0.90414]
[1643794469657,1.52940476,2764.9,2764.3,1.90414]
[1643794469861,1.52940476,2764.9,2764.7,0.8095943]
[1643794470059,0.1807,2765.3,2764.7,0.8095943]
[1643794470260,1.52927762,2765.2,2764.7,1.1095943]
[1643794470657,0.31889997,2765.4,2764.7,1.1095943]
[1643794470658,1.52927762,2765.1,2764.7,1.1095943]
[1643794470909,1.04226997,2765.4,2764.7,1.1095943]
[1643794471109,1.93966401,2765.3,2764.7,1.1095943]
[1643794471309,1.52928052,2765.2,2764.7,1.1095943]
[1643794472111,2.43337672,2765.2,2764.7,1.1095943]
[1643794472516,1.52928052,2765.1,2764.7,0.3]
[1643794472715,1.52928052,2765.1,2764.6,0.3]
[1643794472716,1.82928052,2765.1,2764.6,0.3]
[1643794473119,0.3,2765.1,2764.6,0.3]
[1643794473317,1.2040962,2765.2,2764.6,1.3]
[1643794473517,1.52930063,2765.1,2764.6,2.11414842]
[1643794473718,1.2040962,2765.2,2764.6,2.11414842]
[1643794473919,0.9040962,2765.2,2764.6,2.11414842]
[1643794474123,0.1807,2765.3,2764.7,0.90404]
[1643794474326,0.1807,2765.8,2764.7,2.43333259]
[1643794474520,1.5290682,2765.7,2764.7,2.42704]
[1643794474753,1.8290682,2765.7,2765.6,0.71545952]
[1643794474954,1.8290682,2765.7,2765.6,0.94361501]
[1643794475358,0.3,2765.7,2765.6,0.94361501]
[1643794475553,0.1807,2765.8,2765.6,0.94361501]
[1643794475754,1.52894836,2765.7,2765.6,0.94361501]
[1643794475953,1.52894836,2765.7,2765.6,1.24361501]
[1643794476153,0.1807,2766.1,2765.9,0.31897076]
[1643794476358,1.52888054,2766.0,2765.6,1.24361501]
[1643794476754,1.52888054,2765.9,2765.6,1.24361501]
[1643794476959,0.1807,2766.3,2765.6,1.24361501]
[1643794477155,1.5288663,2766.2,2765.6,1.24361501]
[1643794477959,1.5288663,2766.2,2766.0,0.40245135]
[1643794478412,1.5288663,2766.1,2766.0,0.40245135]
[1643794478813,1.5288663,2766.2,2765.9,0.90366]
[1643794479013,1.5288663,2766.1,2765.9,0.90366]
[1643794479215,0.3,2766.3,2765.9,0.90366]
[1643794479416,1.52881536,2766.2,2765.9,0.90366]
[1643794479720,1.94052593,2766.2,2765.9,0.90366]
[1643794479913,1.52881536,2766.1,2765.9,0.90366]
[1643794480315,1.82881536,2766.1,2765.6,2.10729]
[1643794480514,0.3,2766.1,2765.7,1.0]
[1643794480714,2.56211888,2766.2,2765.4,3.10747]
[1643794480914,1.52888038,2766.1,2765.4,3.10747]
[1643794481915,0.9037812,2766.0,2765.5,0.90373]
[1643794482154,0.3,2765.9,2765.5,0.90373]
[1643794483959,0.3,2765.9,2765.7,0.40797281]
[1643794484259,1.31546057,2766.2,2765.7,1.31169281]
[1643794484260,2.1074601,2766.2,2765.7,1.31169281]
[1643794484460,2.1074601,2766.2,2765.9,0.68012346]
[1643794484660,0.3,2766.2,2765.9,0.68012346]
[1643794484865,0.4807,2766.3,2765.9,0.68012346]
[1643794485059,1.52885738,2766.2,2765.7,1.20372]
[1643794485260,0.3,2766.2,2765.7,1.20372]
[1643794485662,0.4807,2766.5,2765.7,1.20372]
[1643794485905,1.5288181,2766.4,2765.7,1.20372]
[1643794486104,0.1807,2766.3,2765.7,1.92884941]
[1643794486305,0.1807,2766.3,2765.7,2.26287945]
[1643794487105,1.0843991,2766.3,2765.7,2.26287945]
[1643794487307,1.0843991,2766.3,2765.7,4.22861153]
[1643794487308,1.3843991,2766.3,2765.7,4.22861153]
[1643794487516,0.3,2766.3,2765.8,1.90362]
[1643794487710,0.4807,2766.6,2765.9,3.80144578]
[1643794487911,1.52873898,2766.5,2765.9,1.80709]
[1643794488111,1.70943898,2766.5,2766.0,1.0]
[1643794488309,0.1807,2766.5,2765.9,1.80709]
[1643794488508,0.59881126,2766.5,2765.9,1.80709]
[1643794488708,0.71811126,2766.5,2765.9,1.80709]
[1643794489311,0.89881126,2766.5,2766.0,0.90355]
[1643794489754,0.89881126,2766.5,2766.0,1.90355]
[1643794490061,0.89881126,2766.5,2766.0,0.90355]
[1643794490253,0.89881126,2766.5,2766.0,1.90355]
[1643794491057,0.4807,2766.5,2766.0,1.90355]
[1643794491657,0.3,2766.5,2766.0,1.90355]
[1643794493160,1.20365,2766.5,2766.0,1.90355]
[1643794493406,0.9036578,2766.4,2766.0,1.90355]
[1643794493608,1.2036578,2766.4,2766.0,1.90355]
[1643794494706,1.2036578,2766.4,2766.0,0.90355]
[1643794494908,1.2036578,2766.4,2765.9,1.80709]
[1643794494909,2.1073678,2766.4,2765.9,1.80709]
[1643794496107,1.52884063,2766.3,2765.9,1.80709]
[1643794496506,0.43912646,2766.1,2765.9,1.80709]
[1643794496711,2.10608234,2766.4,2765.9,1.80709]
[1643794496906,1.52884682,2766.3,2765.9,1.80709]
[1643794499367,2.53626488,2766.4,2765.9,1.80709]
[1643794500567,2.10608234,2766.4,2765.9,1.80709]
[1643794500766,1.20237234,2766.4,2765.9,1.80709]
[1643794501620,1.20237234,2766.4,2765.9,2.80709]
[1643794502009,1.20237234,2766.4,2766.2,0.35281637]
[1643794502214,1.20237234,2766.4,2766.1,0.74979401]
[1643794503215,1.20237234,2766.4,2766.2,0.90354]
[1643794505964,1.20237234,2766.4,2766.0,1.0]
[1643794506159,1.20237234,2766.4,2766.0,0.3]
[1643794506356,0.42195169,2766.3,2766.0,0.3]
[1643794506560,0.42195169,2766.3,2765.9,2.10709]
[1643794507760,0.42195169,2766.3,2765.9,1.80709]
[1643794508410,1.52891269,2766.2,2765.9,1.80709]
[1643794508612,2.43261529,2766.2,2765.4,6.80288]
[1643794508813,2.43261529,2766.2,2765.4,3.9954]
[1643794508814,1.70961269,2766.1,2765.4,3.9954]
[1643794509009,1.70961269,2766.1,2765.2,0.25]
[1643794509010,1.52891269,2766.0,2765.2,0.25]
[1643794509209,1.52891269,2766.0,2765.1,7.0357]
[1643794509210,0.1807,2765.9,2765.1,7.0357]
[1643794509410,0.1807,2765.9,2765.1,3.0873]